bitfinex/quotes_BTCUSD_20250901
["timestamp","ask_amount","ask_price","bid_price","bid_amount"]
[1756708983743,0.04567659,108180.0,108170.0,1.86292239]
[1756708983968,0.04567659,108180.0,108170.0,2.35027029]
[1756708985510,0.04567659,108180.0,108170.0,2.19535029]
[1756708985807,0.37810449,108180.0,108170.0,1.66292239]
[1756708985975,0.04567659,108180.0,108170.0,1.81784239]
[1756708986860,0.04567659,108180.0,108170.0,1.81584239]
[1756708987085,0.04567659,108180.0,108170.0,1.81384239]
[1756708987462,0.04567659,108180.0,108170.0,1.81584239]
[1756708988224,0.04567659,108180.0,108170.0,2.14827029]
[1756708988458,0.04567659,108180.0,108170.0,1.81584239]
[1756708988867,0.04567659,108180.0,108170.0,1.66092239]
[1756708989004,0.04567659,108180.0,108170.0,1.81584239]
[1756708989430,0.04567659,108180.0,108170.0,1.66092239]
[1756708989808,0.04567659,108180.0,108170.0,1.78807739]
[1756708990007,0.04567659,108180.0,108170.0,1.63315739]
[1756708990303,0.04567659,108180.0,108170.0,1.78607739]
[1756708990509,0.04567659,108180.0,108170.0,1.78707739]
[1756708991042,0.04567659,108180.0,108170.0,1.78807739]
[1756708991248,0.04567659,108180.0,108170.0,2.12050529]
[1756708991628,0.04567659,108180.0,108170.0,1.78807739]
[1756708991926,0.04567659,108180.0,108170.0,2.12050529]
[1756708992171,0.03056404,108190.0,108180.0,0.86730495]
[1756708992402,0.03056404,108190.0,108180.0,1.11520496]
[1756708993039,0.03056404,108190.0,108180.0,1.54296996]
[1756708993226,0.03056404,108190.0,108180.0,1.55207991]
[1756708993896,0.03056404,108190.0,108180.0,1.06473201]
[1756708994126,0.03056404,108190.0,108180.0,1.01965201]
[1756708994354,0.03056404,108190.0,108180.0,1.51965201]
[1756708995009,0.03056404,108190.0,108180.0,1.52065201]
[1756708995630,0.03056404,108190.0,108180.0,1.52077201]
[1756708996437,0.03056404,108190.0,108180.0,1.12077201]
[1756708996941,0.03056404,108190.0,108180.0,1.52077201]
[1756708997373,0.03056404,108190.0,108180.0,1.12077201]
[1756708997822,0.03056404,108190.0,108180.0,1.52077201]
[1756709000711,0.03104787,108200.0,108190.0,0.18485996]
[1756709000909,1e-08,108200.0,108190.0,0.96534787]
[1756709001125,1e-08,108200.0,108190.0,1.03638787]
[1756709001537,1e-08,108200.0,108190.0,1.43638787]
[1756709002142,1e-08,108200.0,108190.0,1.77638787]
[1756709002344,0.03269936,108220.0,108210.0,1.2072537]
[1756709002520,0.03269936,108220.0,108210.0,1.52639371]
[1756709003001,0.03269936,108220.0,108210.0,1.59396581]
[1756709003207,0.03269936,108220.0,108210.0,1.62172281]
[1756709003647,0.03269936,108220.0,108210.0,1.62219768]
[1756709003835,0.03269936,108220.0,108210.0,1.42215768]
[1756709004037,0.03269936,108220.0,108210.0,1.39440068]
[1756709004851,0.03269936,108220.0,108210.0,1.43619041]
[1756709008711,0.03269936,108220.0,108210.0,0.88111041]
[1756709008901,0.03269936,108220.0,108210.0,1.03615041]
[1756709009336,0.03269936,108220.0,108210.0,1.43615041]
[1756709009511,0.03269936,108220.0,108210.0,1.28111041]
[1756709009715,0.03269936,108220.0,108210.0,1.43607041]
[1756709012227,0.03369936,108220.0,108210.0,1.43607041]
[1756709012486,0.03369936,108220.0,108210.0,1.53607041]
[1756709012649,0.03269936,108220.0,108210.0,1.53607041]
[1756709013061,0.03269936,108220.0,108210.0,1.53707041]
[1756709013656,0.03269936,108220.0,108210.0,1.53607041]
[1756709016250,0.03369936,108220.0,108210.0,1.53707041]
[1756709016766,0.03269936,108220.0,108210.0,1.53707041]
[1756709018086,0.03269936,108220.0,108210.0,1.49528068]
[1756709020337,0.03269936,108220.0,108210.0,1.09528068]
[1756709020782,0.03269936,108220.0,108210.0,1.49528068]
[1756709022686,0.03269936,108220.0,108210.0,1.09528068]
[1756709024531,0.03269936,108220.0,108210.0,1.13661667]
[1756709025143,0.03269936,108220.0,108210.0,0.98165667]
[1756709025338,0.36512726,108220.0,108210.0,1.13653667]
[1756709025568,0.03269936,108220.0,108210.0,1.13653667]
[1756709026519,0.03269936,108220.0,108210.0,0.98165667]
[1756709026722,0.03269936,108220.0,108210.0,1.13653667]
[1756709026882,0.03269936,108220.0,108210.0,0.98165667]
[1756709027087,0.03269936,108220.0,108210.0,1.13661667]
[1756709028940,0.03269936,108220.0,108210.0,1.53661667]
[1756709030907,0.03269936,108220.0,108210.0,1.53657667]
[1756709031625,0.03269936,108220.0,108210.0,1.38165667]
[1756709032008,0.03269936,108220.0,108210.0,1.86908457]
[1756709032178,0.03269936,108220.0,108210.0,1.53665667]
[1756709032379,0.03269936,108220.0,108210.0,1.86908457]
[1756709032586,0.01050181,108220.0,108210.0,1.46908457]
[1756709032819,0.01050181,108220.0,108210.0,1.13665667]
[1756709033022,0.01050181,108220.0,108210.0,1.46908457]
[1756709033199,0.01050181,108220.0,108210.0,1.86908457]
[1756709033920,0.01050181,108220.0,108210.0,1.46908457]
[1756709034314,0.01050181,108220.0,108210.0,1.53665667]
[1756709035473,0.01050181,108220.0,108210.0,1.13665667]
[1756709038007,0.01050181,108220.0,108210.0,1.09532068]
[1756709039913,0.01050181,108220.0,108210.0,1.12308268]
[1756709040611,0.01050181,108220.0,108210.0,0.96808268]
[1756709040910,0.01050181,108220.0,108210.0,1.12296268]
[1756709041321,0.01050181,108220.0,108210.0,0.96808268]
[1756709041524,0.34292971,108220.0,108210.0,1.02998267]
[1756709041933,0.34292971,108220.0,108210.0,0.68998267]
[1756709042139,0.34292971,108220.0,108210.0,0.66222067]
[1756709042305,0.01050181,108220.0,108210.0,0.66222067]
[1756709042478,0.34292971,108220.0,108210.0,0.66222067]
[1756709043757,0.01050181,108220.0,108210.0,0.66222067]
[1756709044105,0.01050181,108220.0,108210.0,0.50734067]
[1756709044310,0.01050181,108220.0,108210.0,0.70376896]
[1756709045366,0.01050181,108220.0,108210.0,0.63272896]
[1756709045593,0.52773843,108220.0,108210.0,0.29802316]
[1756709045865,0.52773843,108220.0,108210.0,0.48284896]
[1756709046449,0.34292971,108220.0,108210.0,0.48284896]
[1756709046851,0.52773843,108220.0,108210.0,0.48292896]
[1756709047740,0.52773843,108220.0,108210.0,0.32784896]
[1756709047937,0.52773843,108220.0,108210.0,0.48296896]
[1756709048887,0.34292971,108220.0,108210.0,0.48296896]
[1756709050061,0.01050181,108220.0,108210.0,0.48296896]
[1756709050316,0.34292971,108220.0,108210.0,0.48296896]
[1756709050690,0.34292971,108220.0,108210.0,0.32784896]
[1756709051129,0.34292971,108220.0,108210.0,0.48296896]
[1756709051340,0.01050181,108220.0,108210.0,0.48296896]
[1756709051550,0.01050181,108220.0,108210.0,0.70396896]
[1756709052410,0.01050181,108220.0,108210.0,1.10396896]
[1756709053003,0.01050181,108220.0,108210.0,0.70396896]
[1756709057974,0.01050181,108220.0,108210.0,0.66242067]
[1756709058926,0.01050181,108220.0,108210.0,1.06242067]
[1756709060813,0.19531053,108220.0,108210.0,0.90730067]
[1756709060970,0.34292971,108220.0,108210.0,0.66266067]
[1756709061171,0.34292971,108220.0,108210.0,0.50730067]
[1756709061440,0.34292971,108220.0,108210.0,0.66262067]
[1756709061664,0.01050181,108220.0,108210.0,0.51262067]
[1756709061885,0.34292971,108220.0,108210.0,0.51262067]
[1756709062209,0.52773843,108220.0,108210.0,0.44174067]
[1756709063316,0.34292971,108220.0,108210.0,0.44174067]
[1756709063518,0.34292971,108220.0,108210.0,0.48401328]
[1756709070159,0.34292971,108220.0,108210.0,0.32857328]
[1756709070415,0.34292971,108220.0,108210.0,0.48393328]
[1756709073055,0.01050181,108220.0,108210.0,0.48393328]
[1756709073265,0.01050181,108220.0,108210.0,0.63393328]
[1756709074543,0.34292971,108220.0,108210.0,0.63393328]
[1756709075678,0.34292971,108220.0,108210.0,0.63385328]
[1756709077563,0.34292971,108220.0,108210.0,0.47857328]
[1756709077757,0.34292971,108220.0,108210.0,0.63389328]
[1756709077988,0.34292971,108220.0,108210.0,0.59162067]
[1756709081200,0.34292971,108220.0,108210.0,0.59150067]
[1756709081529,0.01050181,108220.0,108210.0,0.59150067]
[1756709082487,0.34292971,108220.0,108210.0,0.59150067]
[1756709083123,0.34292971,108220.0,108210.0,0.63339447]
[1756709086868,0.34292971,108220.0,108210.0,0.47819447]
[1756709087228,0.34292971,108220.0,108210.0,0.63327447]
[1756709088406,0.34292971,108220.0,108210.0,0.47819447]
[1756709088591,0.34292971,108220.0,108210.0,0.63323447]
[1756709092156,0.34292971,108220.0,108210.0,0.66323447]
[1756709094358,0.34292971,108220.0,108210.0,0.50819447]
[1756709094566,0.34292971,108220.0,108210.0,0.66319447]
[1756709094782,0.52773843,108220.0,108210.0,0.50819447]
[1756709094996,0.52773843,108220.0,108210.0,0.51315447]
[1756709096370,0.34292971,108220.0,108210.0,0.51315447]
[1756709096586,0.52773843,108220.0,108210.0,0.51315447]
[1756709097000,0.34292971,108220.0,108210.0,0.35819447]
[1756709097224,0.52773843,108220.0,108210.0,0.51315447]
[1756709097451,0.34292971,108220.0,108210.0,0.51315447]
[1756709097866,0.34292971,108220.0,108210.0,0.47126067]
[1756709098488,0.52773843,108220.0,108210.0,0.47126067]
[1756709099559,0.68269843,108220.0,108210.0,0.47126067]
[1756709100540,0.70363725,108220.0,108210.0,0.13147487]
[1756709100768,1.12904516,108220.0,108210.0,0.13147487]
[1756709101208,1.15681316,108220.0,108210.0,0.13147487]
[1756709101518,1.49681316,108220.0,108210.0,0.13147487]
[1756709101942,1.39185316,108220.0,108210.0,0.13147487]
[1756709102151,1.54701316,108220.0,108210.0,0.13147487]
[1756709102363,1.39185316,108220.0,108210.0,0.13147487]
[1756709102572,1.54701316,108220.0,108210.0,0.13147487]
[1756709103189,1.54705316,108220.0,108210.0,0.13147487]
[1756709103650,1.54805316,108220.0,108210.0,0.13147487]
[1756709104067,1.54705316,108220.0,108210.0,0.13047487]
[1756709104756,1.54905316,108220.0,108210.0,0.13047487]
[1756709105373,1.54705316,108220.0,108210.0,0.13047487]
[1756709106046,1.54905316,108220.0,108210.0,0.13047487]
[1756709106983,1.55005316,108220.0,108210.0,0.13047487]
[1756709109232,1.39485316,108220.0,108210.0,0.13047487]
[1756709109419,1.55009316,108220.0,108210.0,0.13047487]
[1756709110025,1.19676644,108220.0,108210.0,0.13047487]
[1756709110423,1.39485316,108220.0,108210.0,0.13047487]
[1756709110919,1.21770526,108220.0,108210.0,0.13047487]
[1756709111100,1.55013316,108220.0,108210.0,0.13047487]
[1756709115114,1.55017316,108220.0,108210.0,0.13047487]
[1756709116966,1.55500448,108220.0,108210.0,0.13047487]
[1756709118217,1.39968448,108220.0,108210.0,0.13047487]
[1756709118332,1.55500448,108220.0,108210.0,0.13047487]
[1756709119224,1.55300448,108220.0,108210.0,0.13047487]
[1756709119672,1.55500448,108220.0,108210.0,0.13047487]
[1756709120082,0.72725658,108220.0,108210.0,0.31530067]
[1756709120239,1.22057658,108220.0,108210.0,0.31530067]
[1756709120656,1.22257658,108220.0,108210.0,0.31530067]
[1756709120876,0.88257658,108220.0,108210.0,0.31530067]
[1756709121078,0.72725658,108220.0,108210.0,0.31530067]
[1756709121256,0.69293654,108220.0,108210.0,0.31530067]
[1756709121682,0.87774526,108220.0,108210.0,0.31530067]
[1756709122059,0.87774526,108220.0,108210.0,0.13047487]
[1756709122282,1.20917316,108220.0,108210.0,0.13047487]
[1756709122464,1.20717316,108220.0,108210.0,0.13047487]
[1756709123299,1.20917316,108220.0,108210.0,0.13047487]
[1756709123920,1.20717316,108220.0,108210.0,0.13047487]
[1756709124264,1.21017316,108220.0,108210.0,0.13047487]
[1756709125273,1.05485316,108220.0,108210.0,0.13047487]
[1756709125477,0.87770526,108220.0,108210.0,0.31530067]
[1756709125723,0.87670526,108220.0,108210.0,0.31530067]
[1756709126482,0.87570526,108220.0,108210.0,0.31530067]
[1756709126626,0.87470526,108220.0,108210.0,0.31530067]
[1756709126829,0.87670526,108220.0,108210.0,0.31530067]
[1756709127263,0.87770526,108220.0,108210.0,0.31530067]
[1756709127418,0.87570526,108220.0,108210.0,0.31530067]
[1756709127631,0.87570526,108220.0,108210.0,0.13047487]
[1756709127828,0.87770526,108220.0,108210.0,0.13047487]
[1756709128034,1.21013316,108220.0,108210.0,0.13047487]
[1756709134563,1.55013316,108220.0,108210.0,0.13047487]
[1756709136513,0.88527736,108220.0,108210.0,0.13047487]
[1756709136670,1.55013316,108220.0,108210.0,0.13047487]
[1756709139725,0.88527736,108220.0,108210.0,0.13047487]
[1756709139924,1.55013316,108220.0,108210.0,0.13047487]
[1756709142079,1.88256106,108220.0,108210.0,0.13047487]
[1756709142697,1.88738968,108220.0,108210.0,0.13047487]
[1756709145012,1.55480178,108220.0,108210.0,0.13047487]
[1756709145386,1.39968178,108220.0,108210.0,0.13047487]
[1756709145662,1.55484178,108220.0,108210.0,0.13047487]
[1756709146154,1.55492178,108220.0,108210.0,0.13047487]
[1756709150340,1.39968178,108220.0,108210.0,0.13047487]
[1756709150772,1.55492178,108220.0,108210.0,0.13047487]
[1756709152947,1.65235178,108220.0,108210.0,0.13047487]
[1756709153154,1.55492178,108220.0,108210.0,0.13047487]
[1756709162304,1.63309194,108220.0,108210.0,1e-08]
[1756709162507,1.65492178,108220.0,108210.0,1e-08]
[1756709163110,2.08477968,108220.0,108210.0,1e-08]
[1756709163328,1.75235178,108220.0,108210.0,1e-08]
[1756709163485,1.75035178,108220.0,108210.0,1e-08]
[1756709163868,1.75235178,108220.0,108210.0,1e-08]
[1756709164512,1.75035178,108220.0,108210.0,1e-08]
[1756709164911,1.74935178,108220.0,108210.0,1e-08]
[1756709165330,1.75135178,108220.0,108210.0,1e-08]
[1756709165529,1.75635178,108220.0,108210.0,1e-08]
[1756709168015,0.99348169,108200.0,108190.0,0.0721143]
[1756709168209,1.6450096,108200.0,108190.0,0.07259005]
[1756709168439,1.6450096,108200.0,108190.0,0.00047575]
[1756709168577,1.9774375,108200.0,108190.0,0.00047575]
[1756709168774,1.98226612,108200.0,108190.0,0.00047575]
[1756709169367,2.01004612,108200.0,108190.0,0.00047575]
[1756709169579,2.01504612,108200.0,108190.0,0.00047575]
[1756709169781,1.35019032,108200.0,108190.0,0.00047575]
[1756709170021,1.68261822,108200.0,108190.0,0.00047575]
[1756709171025,1.73461822,108200.0,108190.0,0.00047575]
[1756709171227,1.57953822,108200.0,108190.0,0.00047575]
[1756709171434,1.73461822,108200.0,108190.0,0.00047575]
[1756709171648,1.57953822,108200.0,108190.0,0.00047575]
[1756709171857,1.73461822,108200.0,108190.0,0.00047575]
[1756709173390,1.24711032,108200.0,108190.0,0.00047575]
[1756709173598,1.73461822,108200.0,108190.0,0.00047575]
[1756709173998,1.28691823,108200.0,108190.0,0.00047575]
[1756709174405,1.13183823,108200.0,108190.0,0.00047575]
[1756709174606,1.28691823,108200.0,108190.0,0.00047575]
[1756709175350,1.28491823,108200.0,108190.0,0.00047575]
[1756709175812,1.28691823,108200.0,108190.0,0.00047575]
[1756709176379,1.28491823,108200.0,108190.0,0.00047575]
[1756709176585,1.27991823,108200.0,108190.0,0.00047575]
[1756709177008,1.28491823,108200.0,108190.0,0.00047575]
[1756709177540,1.27991823,108200.0,108190.0,0.00047575]
[1756709178001,1.28491823,108200.0,108190.0,0.00047575]
[1756709178208,1.28691823,108200.0,108190.0,0.00047575]
[1756709179641,0.95449033,108200.0,108190.0,0.00047575]
[1756709179854,1.28691823,108200.0,108190.0,0.00047575]
[1756709180431,1.28191823,108200.0,108190.0,0.00047575]
[1756709180792,1.28691823,108200.0,108190.0,0.00047575]
[1756709181196,1.28191823,108200.0,108190.0,0.00047575]
[1756709181592,1.28291823,108200.0,108190.0,0.00047575]
[1756709182151,1.28491823,108200.0,108190.0,0.00047575]
[1756709182511,1.28291823,108200.0,108190.0,0.00047575]
[1756709183035,1.27908961,108200.0,108190.0,0.00047575]
[1756709183392,0.79158171,108200.0,108190.0,0.00047575]
[1756709183597,1.27908961,108200.0,108190.0,0.00047575]
[1756709185487,1.27808961,108200.0,108190.0,0.00047575]
[1756709186255,1.27908961,108200.0,108190.0,0.00047575]
[1756709186954,1.27808961,108200.0,108190.0,0.00047575]
[1756709188583,1.27908961,108200.0,108190.0,0.00047575]
[1756709197378,1.27908961,108200.0,108190.0,0.02147575]
[1756709201723,0.94666171,108200.0,108190.0,0.02147575]
[1756709201960,1.27908961,108200.0,108190.0,0.02147575]
[1756709215283,1.61151751,108200.0,108190.0,0.02147575]
[1756709216419,1.61634613,108200.0,108190.0,0.02147575]
[1756709216844,0.95149033,108200.0,108190.0,0.02147575]
[1756709217106,1.61634613,108200.0,108190.0,0.02147575]
[1756709222140,1.94975911,108200.0,108190.0,0.02147575]
[1756709222519,0.00924385,108180.0,108150.0,0.0721143]
[1756709222722,0.00924385,108180.0,108150.0,0.07259023]
[1756709222723,0.87136258,108160.0,108150.0,0.07259023]
[1756709222924,1.02640258,108160.0,108150.0,0.07259023]
[1756709223128,1.11938259,108160.0,108150.0,0.00047593]
[1756709223325,1.14716659,108160.0,108150.0,0.00047593]
[1756709223897,1.15641176,108160.0,108150.0,0.00047593]
[1756709224970,1.15641176,108160.0,108150.0,0.00147593]
[1756709225590,1.48916802,108160.0,108150.0,0.00047593]
[1756709226016,1.15676674,108160.0,108150.0,0.00347593]
[1756709226257,1.15676674,108160.0,108150.0,0.00547593]
[1756709226621,1.15676674,108160.0,108150.0,0.00347593]
[1756709226823,0.82383299,108160.0,108150.0,0.00347593]
[1756709227022,0.82683299,108160.0,108150.0,0.00347593]
[1756709227255,0.49389924,108160.0,108150.0,0.00347593]
[1756709227453,1.15676674,108160.0,108150.0,0.00347593]
[1756709227923,1.16176674,108160.0,108150.0,0.00047593]
[1756709228324,1.16276674,108160.0,108150.0,0.00047593]
[1756709228880,1.16176674,108160.0,108150.0,0.00047593]
[1756709229383,1.16376674,108160.0,108150.0,0.00047593]
[1756709229789,1.15876674,108160.0,108150.0,0.00047593]
[1756709230216,1.16076674,108160.0,108150.0,0.00047593]
[1756709230579,1.15876674,108160.0,108150.0,0.00047593]
[1756709230996,0.67479299,108160.0,108150.0,0.00047593]
[1756709231395,0.31492042,108160.0,108150.0,0.18540427]
[1756709231572,0.64785417,108160.0,108150.0,0.18540427]
[1756709231774,0.21569524,108160.0,108150.0,0.18540427]
[1756709231981,0.37073524,108160.0,108150.0,0.18540427]
[1756709232226,0.37986475,108160.0,108150.0,0.18540427]
[1756709232444,0.7117985,108160.0,108150.0,0.18540427]
[1756709232647,0.70266899,108160.0,108150.0,0.18540427]
[1756709232858,0.186824,108160.0,108150.0,0.18540427]
[1756709233488,0.184824,108160.0,108150.0,0.18540427]
[1756709233685,0.234824,108160.0,108150.0,0.18540427]
[1756709233906,0.238824,108160.0,108150.0,0.18540427]
[1756709234115,0.42373524,108160.0,108150.0,0.18540427]
[1756709234316,0.41973524,108160.0,108150.0,0.18540427]
[1756709234522,0.234824,108160.0,108150.0,0.18540427]
[1756709234937,0.41973524,108160.0,108150.0,0.00047593]
[1756709235134,0.75066899,108160.0,108150.0,0.00047593]
[1756709235910,0.75999646,108160.0,108150.0,0.18540427]
[1756709236514,0.42706271,108160.0,108150.0,0.18540427]
[1756709236721,0.57508522,108160.0,108150.0,0.18540427]
[1756709237131,0.75999646,108160.0,108150.0,0.18540427]
[1756709237303,0.76099646,108160.0,108150.0,0.18540427]
[1756709237722,0.75999646,108160.0,108150.0,0.18540427]
[1756709237960,0.60495646,108160.0,108150.0,0.18540427]
[1756709238150,0.57516522,108160.0,108150.0,0.18540427]
[1756709238317,0.75074899,108160.0,108150.0,0.18540427]
[1756709238722,0.41071775,108160.0,108150.0,0.18540427]
[1756709238928,0.56583775,108160.0,108150.0,0.18640427]
[1756709239531,0.232904,108160.0,108150.0,0.18640427]
[1756709239763,0.41781524,108160.0,108150.0,0.18640427]
[1756709240181,0.75074899,108160.0,108150.0,0.18640427]
[1756709240582,0.75174899,108160.0,108150.0,0.18640427]
[1756709240783,0.77268781,108160.0,108150.0,0.18640427]
[1756709241009,0.77168781,108160.0,108150.0,0.18640427]
[1756709241207,0.77168781,108160.0,108150.0,0.22720091]
[1756709242364,0.43165657,108160.0,108150.0,0.22720091]
[1756709242500,0.77168781,108160.0,108150.0,0.22620091]
[1756709242907,0.58677657,108160.0,108150.0,0.22620091]
[1756709243581,0.25384282,108160.0,108150.0,0.22620091]
[1756709243734,0.58677657,108160.0,108150.0,0.22620091]
[1756709243939,0.58677657,108160.0,108150.0,0.22720091]
[1756709244146,0.58777657,108160.0,108150.0,0.22720091]
[1756709244348,0.58677657,108160.0,108150.0,0.22720091]
[1756709244738,0.232904,108160.0,108150.0,0.22720091]
[1756709245600,0.05,108160.0,108150.0,0.38232091]
[1756709245813,0.05,108160.0,108150.0,0.71525466]
[1756709246037,0.05,108160.0,108150.0,0.86525466]
[1756709246453,0.05,108160.0,108150.0,1.26525466]
[1756709246864,0.05,108160.0,108150.0,0.96009891]
[1756709247069,0.05,108160.0,108150.0,0.56009891]
[1756709251419,0.05,108160.0,108150.0,0.89303266]
[1756709251618,0.05,108160.0,108150.0,0.56013891]
[1756709261705,0.56784499,108160.0,108150.0,0.25497891]
[1756709261908,0.74382381,108160.0,108150.0,0.00147593]
[1756709262090,0.83680382,108160.0,108150.0,0.00147593]
[1756709262512,0.86458682,108160.0,108150.0,0.00147593]
[1756709263481,0.86458682,108160.0,108150.0,0.00047593]
[1756709263689,0.86558682,108160.0,108150.0,0.00047593]
[1756709266299,0.53273307,108160.0,108150.0,0.18540427]
[1756709266508,0.86566682,108160.0,108150.0,0.18540427]
[1756709267207,0.86566682,108160.0,108150.0,0.00047593]
[1756709267688,0.86566682,108160.0,108150.0,0.18540427]
[1756709268310,0.71054682,108160.0,108150.0,0.18540427]
[1756709268512,0.53297307,108160.0,108150.0,0.18540427]
[1756709268712,0.86590682,108160.0,108150.0,0.18540427]
[1756709269905,0.86590682,108160.0,108150.0,0.00047593]
[1756709270300,0.86590682,108160.0,108150.0,0.18540427]
[1756709271306,0.71054682,108160.0,108150.0,0.18540427]
[1756709271628,0.86586682,108160.0,108150.0,0.18540427]
[1756709272279,0.53293307,108160.0,108150.0,0.18540427]
[1756709272659,0.86586682,108160.0,108150.0,0.18540427]
[1756709278609,0.86574682,108160.0,108150.0,0.18540427]
[1756709280991,0.86574682,108160.0,108150.0,0.00047593]
[1756709281422,0.86574682,108160.0,108150.0,0.18540427]
[1756709282003,0.86574682,108160.0,108150.0,0.00047593]
[1756709282616,0.71054682,108160.0,108150.0,0.00047593]
[1756709282775,0.71054682,108160.0,108150.0,0.18540427]
[1756709282979,0.86582682,108160.0,108150.0,0.18540427]
[1756709283893,0.34794183,108160.0,108150.0,0.18540427]
[1756709284134,0.86578682,108160.0,108150.0,0.18540427]
[1756709285226,0.22721882,108160.0,108150.0,0.18540427]
[1756709285970,0.56015257,108160.0,108150.0,0.18540427]
[1756709286508,0.74506381,108160.0,108150.0,0.18540427]
[1756709286918,0.56015257,108160.0,108150.0,0.18540427]
[1756709287109,0.56035257,108160.0,108150.0,0.18540427]
[1756709287316,0.07193882,108160.0,108150.0,0.18540427]
[1756709287515,0.56035257,108160.0,108150.0,0.18540427]
[1756709287912,0.55935257,108160.0,108150.0,0.18540427]
[1756709288277,0.56035257,108160.0,108150.0,0.18540427]
[1756709288510,0.55935257,108160.0,108150.0,0.18540427]
[1756709289989,0.07093882,108160.0,108150.0,0.18540427]
[1756709290193,0.05,108160.0,108150.0,0.18640427]
[1756709290410,0.05,108160.0,108150.0,0.51933802]
[1756709290850,0.60334,108170.0,108160.0,0.18491124]
[1756709291693,0.60334,108170.0,108160.0,0.19420694]
[1756709292002,0.60434,108170.0,108160.0,0.19420694]
[1756709292198,0.4487,108170.0,108160.0,0.34984694]
[1756709292407,0.60434,108170.0,108160.0,0.34984694]
[1756709293516,0.4487,108170.0,108160.0,0.34984694]
[1756709293729,0.4487,108170.0,108160.0,0.18491124]
[1756709293915,0.4487,108170.0,108160.0,0.34051124]
[1756709295677,0.78163375,108170.0,108160.0,0.34051124]
[1756709296462,0.4487,108170.0,108160.0,0.34051124]
[1756709297221,0.4487,108170.0,108160.0,0.18491124]
[1756709298457,0.001,108170.0,108160.0,0.18491124]
[1756709299069,0.53976671,108170.0,108160.0,0.18491124]
[1756709299270,0.53976671,108170.0,108150.0,0.34100427]
[1756709299473,0.36153006,108160.0,108150.0,0.22685482]
[1756709299674,0.36153006,108160.0,108150.0,0.38253482]
[1756709299675,0.69446381,108160.0,108150.0,0.38253482]
[1756709299812,0.69446381,108160.0,108150.0,0.22685482]
[1756709300975,0.69446381,108160.0,108150.0,0.18540427]
[1756709301519,0.69446381,108160.0,108150.0,0.18640427]
[1756709304087,0.69446381,108160.0,108150.0,0.2275716]
[1756709304457,0.69446381,108160.0,108150.0,0.2265716]
[1756709305312,0.69546381,108160.0,108150.0,0.2265716]
[1756709308912,0.78844382,108160.0,108150.0,0.00047593]
[1756709309871,0.63276382,108160.0,108150.0,0.00047593]
[1756709310071,0.78856382,108160.0,108150.0,0.18540427]
[1756709310238,0.27071883,108160.0,108150.0,0.18540427]
[1756709310442,0.78856382,108160.0,108150.0,0.18540427]
[1756709310640,0.02093882,108160.0,108150.0,0.18540427]
[1756709310879,0.50967257,108160.0,108150.0,0.18540427]
[1756709311081,0.17773882,108160.0,108150.0,0.18540427]
[1756709311236,0.36265006,108160.0,108150.0,0.18540427]
[1756709311840,0.69458381,108160.0,108150.0,0.18540427]
[1756709313657,0.35387257,108160.0,108150.0,0.18540427]
[1756709313860,0.17669882,108160.0,108150.0,0.18540427]
[1756709314098,0.17765882,108160.0,108150.0,0.18540427]
[1756709314314,0.001,108160.0,108150.0,0.34112427]
[1756709314656,0.001,108160.0,108150.0,0.67405802]
[1756709315060,0.4477,108170.0,108160.0,0.18491124]
[1756709317538,0.4477,108170.0,108160.0,0.18591124]
[1756709320305,0.67361109,108180.0,108170.0,0.18489414]
[1756709320306,0.35387257,108180.0,108170.0,0.18489414]
[1756709320457,0.50963257,108180.0,108170.0,0.18489414]
[1756709321097,0.50959257,108180.0,108170.0,0.18489414]
[1756709321864,0.51059257,108180.0,108170.0,0.18489414]
[1756709322068,0.17765882,108180.0,108170.0,0.18489414]
[1756709322594,0.027779,108190.0,108170.0,0.39257652]
[1756709322939,0.01050181,108220.0,108210.0,0.5248258]
[1756709323229,0.01050181,108220.0,108210.0,1.32749956]
[1756709323659,0.01050181,108220.0,108210.0,1.35526056]
[1756709324376,0.01050181,108220.0,108210.0,1.35573649]
[1756709324593,0.01050181,108220.0,108210.0,1.35581649]
[1756709324847,0.01050181,108220.0,108210.0,1.35881649]
[1756709325308,0.01050181,108220.0,108210.0,1.40078106]
[1756709325565,0.01050181,108220.0,108210.0,1.25431178]
[1756709325788,0.01050181,108220.0,108210.0,1.07080731]
[1756709326015,0.01050181,108220.0,108210.0,0.76504731]
[1756709326283,0.01050181,108220.0,108210.0,0.4601063]
[1756709326542,0.01050181,108220.0,108210.0,0.3890663]
[1756709326786,0.01050181,108220.0,108210.0,0.2332663]
[1756709327050,0.01050181,108220.0,108210.0,0.3860263]
[1756709327188,0.01050181,108220.0,108210.0,0.2332663]
[1756709327427,0.01050181,108220.0,108210.0,0.3860263]
[1756709327669,0.01050181,108220.0,108210.0,0.3830263]
[1756709327916,0.01050181,108220.0,108210.0,0.3850263]
[1756709328121,0.01050181,108220.0,108210.0,0.3849863]
[1756709328332,0.01050181,108220.0,108210.0,0.71792005]
[1756709328747,0.01050181,108220.0,108210.0,0.88394006]
[1756709329927,0.01050181,108220.0,108210.0,1.70687381]
[1756709330341,0.01050181,108220.0,108210.0,1.37394006]
[1756709332177,0.01050181,108220.0,108210.0,1.28528631]
[1756709332403,0.01050181,108220.0,108210.0,1.61822006]
[1756709332589,0.01050181,108220.0,108210.0,1.77602006]
[1756709333032,0.01050181,108220.0,108210.0,1.44308631]
[1756709333155,0.01050181,108220.0,108210.0,1.77602006]
[1756709333562,0.01050181,108220.0,108210.0,1.70895381]
[1756709333762,0.01050181,108220.0,108210.0,1.73671581]
[1756709334214,0.01050181,108220.0,108210.0,1.40378206]
[1756709336652,0.01050181,108220.0,108210.0,1.24598206]
[1756709336798,0.01050181,108220.0,108210.0,1.40382206]
[1756709337427,0.01050181,108220.0,108210.0,1.73675581]
[1756709337762,0.01050181,108220.0,108210.0,2.13675581]
[1756709338959,1e-08,108220.0,108210.0,2.33675581]
[1756709339556,1e-08,108220.0,108210.0,2.33475581]
[1756709339723,1e-08,108220.0,108210.0,2.30699381]
[1756709339905,1e-08,108220.0,108210.0,2.30999381]
[1756709340093,1e-08,108220.0,108210.0,2.30799381]
[1756709340895,1e-08,108220.0,108210.0,2.30699381]
[1756709341256,1e-08,108220.0,108210.0,2.30499381]
[1756709341589,1e-08,108220.0,108210.0,2.30999381]
[1756709341804,1e-08,108220.0,108210.0,1.44932631]
[1756709342014,1e-08,108220.0,108210.0,1.63226006]
[1756709342662,1e-08,108220.0,108210.0,1.62726006]
[1756709342839,1e-08,108220.0,108210.0,1.22726006]
[1756709342988,1e-08,108220.0,108210.0,1.18829549]
[1756709343194,1e-08,108220.0,108210.0,1.18329549]
[1756709343395,1e-08,108220.0,108210.0,1.18029549]
[1756709343597,1e-08,108220.0,108210.0,1.06701703]
[1756709343824,1e-08,108220.0,108210.0,1.22813703]
[1756709344031,1e-08,108220.0,108210.0,1.24133968]
[1756709344976,1e-08,108220.0,108210.0,0.89520328]
[1756709345189,1e-08,108220.0,108210.0,1.24133968]
[1756709346174,1e-08,108220.0,108210.0,1.08321968]
[1756709346374,1e-08,108220.0,108210.0,1.24125968]